bitfinex-derivatives/quotes_ETHF0:USTF0_20250214
["timestamp","ask_amount","ask_price","bid_price","bid_amount"]
[1739540634906,0.74137,2697.3,2697.2,0.74139]
[1739540635608,3.24237137,2697.4,2697.1,4.3708]
[1739540635807,3.24237137,2697.4,2697.3,0.74137]
[1739540636306,0.74137,2697.3,2697.2,0.74139]
[1739540636509,0.74139,2697.2,2697.1,5.11221]
[1739540637701,0.74138,2697.3,2697.2,0.74139]
[1739540638398,3.24237137,2697.4,2697.3,0.74137]
[1739540639102,3.98371137,2697.4,2697.3,0.74137]
[1739540639502,3.24237137,2697.4,2697.1,4.3708]
[1739540639902,3.24237137,2697.4,2697.3,0.74137]
[1739540640304,3.98371137,2697.4,2697.3,0.74137]
[1739540640999,3.24237137,2697.4,2697.3,0.74137]
[1739540642608,0.74139,2697.3,2697.1,5.1122]
[1739540642800,0.74139,2697.3,2697.2,0.74139]
[1739540643005,3.24237137,2697.4,2697.1,4.3708]
[1739540643207,3.24237137,2697.4,2697.3,0.74137]
[1739540643710,3.98371137,2697.4,2697.3,0.74137]
[1739540644014,3.24237137,2697.4,2697.3,0.74137]
[1739540644407,3.98371137,2697.4,2697.3,0.74137]
[1739540646407,3.24237137,2697.4,2697.3,0.74137]
[1739540647612,3.24237137,2697.4,2697.1,4.3708]
[1739540647916,3.24237137,2697.4,2697.3,0.74137]
[1739540648314,3.98371137,2697.4,2697.3,0.74137]
[1739540648813,3.24237137,2697.4,2697.3,0.74137]
[1739540649510,3.24237137,2697.4,2697.1,6.22435]
[1739540649511,3.24237137,2697.4,2697.1,4.3708]
[1739540649710,0.74139,2697.2,2697.1,2.827]
[1739540650509,0.74139,2697.2,2697.1,2.2576]
[1739540650715,0.74139,2697.2,2697.1,1.664]
[1739540651118,0.74142,2697.1,2697.0,1.66955545]
[1739540651314,3.98379137,2697.1,2697.0,2.41100545]
[1739540651618,3.98379137,2697.1,2697.0,1.66955545]
[1739540652116,3.98379137,2697.1,2697.0,2.41100545]
[1739540652311,3.98379137,2697.1,2697.0,1.66955545]
[1739540652507,3.98379137,2697.1,2697.0,0.00555545]
[1739540652908,0.74142,2697.1,2697.0,0.00555545]
[1739540653108,2.41062,2697.1,2697.0,0.00555545]
[1739540659711,1.6692,2697.1,2696.6,3.2078]
[1739540659915,3.98390137,2696.7,2696.6,3.2078]
[1739540662219,0.74156,2696.6,2696.5,2.2457]
[1739540662422,0.74156,2696.6,2696.5,2.98729]
[1739540662618,0.74156,2696.6,2696.5,2.2457]
[1739540662923,0.74156,2696.6,2696.5,2.98729]
[1739540663714,0.74156,2696.6,2696.5,2.2457]
[1739540664121,0.74156,2696.6,2696.5,2.98729]
[1739540664423,0.74156,2696.6,2696.5,0.5817]
[1739540666022,0.74156,2696.6,2696.5,2.2447]
[1739540668526,0.74156,2696.6,2696.5,0.5817]
[1739540668714,0.74156,2696.6,2696.5,2.2447]
[1739540671228,0.74159,2696.5,2696.4,0.60105545]
[1739540671524,0.74159,2696.5,2696.4,1.14045545]
[1739540673625,0.74159,2696.5,2696.4,0.00555545]
[1739540675425,4.3683,2696.6,2695.9,0.5611]
[1739540675737,0.74172,2696.0,2695.9,2.2241]
[1739540676231,0.74172,2696.0,2695.9,0.5611]
[1739540677237,0.74175,2695.9,2695.8,0.5955]
[1739540677421,3.98412137,2695.9,2695.8,0.5955]
[1739540677628,0.74178,2695.8,2695.7,2.2168]
[1739540678033,0.74178,2695.8,2695.7,1.663]
[1739540681834,0.74183,2695.6,2695.5,1.1493]
[1739540682031,3.98420137,2695.6,2695.5,1.1493]
[1739540682238,3.98420137,2695.6,2695.3,0.07420324]
[1739540682239,0.74189,2695.4,2695.3,0.07420324]
[1739540684043,0.74203,2694.9,2694.8,4.8718]
[1739540684232,3.98440137,2694.9,2694.8,6.0373]
[1739540685249,3.98440137,2694.9,2694.8,1.1655]
[1739540686650,0.74203,2694.9,2694.8,1.1655]
[1739540687850,0.74203,2694.9,2694.8,0.5935]
[1739540688051,4.39477137,2695.0,2694.5,2.8168]
[1739540688249,3.98448137,2694.6,2694.5,1.725]
[1739540688453,0.74214,2694.5,2694.4,3.2078]
[1739540689248,0.73811206,2694.5,2694.4,3.2078]
[1739540689850,3.24237137,2694.6,2694.1,3.389]
[1739540690050,0.74222,2694.2,2694.1,4.13124]
[1739540690251,0.74222,2694.2,2694.1,3.389]
[1739540691145,0.74222,2694.2,2694.1,2.829]
[1739540691346,0.74222,2694.2,2694.1,1.165]
[1739540691660,0.74225,2694.1,2694.0,3.2078]
[1739540692050,1.85569,2694.0,2693.3,3.2078]
[1739540692362,3.24237137,2693.4,2693.3,3.2078]
[1739540693051,3.98481137,2693.4,2693.3,3.2078]
[1739540693356,3.24237137,2693.4,2693.3,3.2078]
[1739540693555,0.00556617,2693.6,2693.3,3.95025]
[1739540693750,0.00556617,2693.6,2693.4,0.74241]
[1739540694158,0.00556617,2693.6,2693.3,3.2078]
[1739540694350,3.24237137,2694.3,2693.3,3.2078]
[1739540694551,3.24237137,2694.3,2693.9,3.2078]
[1739540694752,3.24237137,2694.3,2694.0,2.8241]
[1739540694948,3.24237137,2694.3,2694.1,0.74223]
[1739540695350,3.24237137,2694.3,2694.2,0.74222]
[1739540695552,3.24237137,2694.3,2694.1,0.74223]
[1739540695753,0.00556617,2694.5,2694.2,3.2078]
[1739540695959,0.00556617,2694.5,2694.4,0.74216]
[1739540698052,0.00556617,2694.5,2694.4,1.33366]
[1739540698958,0.0480361,2694.5,2694.4,1.33366]
[1739540699559,0.09050636,2694.5,2694.4,1.33366]
[1739540700159,0.13297695,2694.5,2694.4,0.5915]
[1739540700360,0.13297695,2694.5,2694.4,2.2555]
[1739540701157,0.13297695,2694.5,2694.4,2.99766]
[1739540702266,6.45017137,2695.2,2694.4,8.2555]
[1739540702465,3.24237137,2695.2,2695.1,0.74197]
[1739540702869,3.24237137,2695.2,2695.0,0.74198]
[1739540703065,3.24237137,2695.2,2695.1,1.29947]
[1739540703269,3.24237137,2695.5,2695.4,0.74189]
[1739540703571,3.24237137,2695.5,2695.4,5.61369]
[1739540703763,3.24237137,2695.5,2695.4,4.8718]
[1739540703964,3.98423137,2695.5,2695.4,1.664]
[1739540704972,3.28479793,2695.5,2695.4,1.664]
[1739540706164,3.28479793,2695.5,2695.4,2.40589]
[1739540706569,3.28479793,2695.5,2695.4,1.664]
[1739540706764,4.02665793,2695.5,2695.4,1.664]
[1739540707664,0.74192,2695.3,2695.2,0.5399]
[1739540707874,0.74203,2694.9,2694.8,3.2078]
[1739540708167,4.02682793,2694.9,2694.8,4.8718]
[1739540708473,3.28479793,2694.9,2694.8,5.61385]
[1739540708664,0.04242656,2694.9,2694.8,5.61385]
[1739540709458,3.24237137,2695.5,2695.4,0.74189]
[1739540709667,3.24237137,2695.5,2695.4,2.40589]
[1739540709874,3.98423137,2695.5,2695.4,1.664]
[1739540710069,4.02665974,2695.5,2695.4,1.664]
[1739540710871,3.28479974,2695.5,2695.4,1.664]
[1739540711061,3.28479974,2695.5,2695.4,2.40589]
[1739540711672,3.28479974,2695.5,2695.3,0.5441]
[1739540711872,0.5775,2695.4,2694.9,3.2078]
[1739540712172,0.74211,2694.6,2694.5,3.2078]
[1739540712370,3.98448137,2694.6,2694.5,3.2078]
[1739540712871,0.74219,2694.3,2694.2,4.8708]
[1739540713171,4.02698974,2694.3,2694.2,4.8708]
[1739540714178,0.74227,2694.0,2693.9,3.21336617]
[1739540714367,3.98464137,2694.0,2693.9,0.00556617]
[1739540715075,4.02706974,2694.0,2693.9,0.00556617]
[1739540715973,3.28479974,2694.0,2693.9,0.00556617]
[1739540716369,4.02706974,2694.0,2693.9,0.00556617]
[1739540716768,3.28479974,2694.0,2693.9,0.00556617]
[1739540717376,3.28479974,2694.0,2693.9,1.66956617]
[1739540717875,4.02706974,2694.0,2693.9,1.66956617]
[1739540718064,4.02706974,2694.0,2693.9,0.00556617]
[1739540719065,6.52717111,2694.0,2693.3,3.2078]
[1739540719269,3.98481137,2693.4,2693.3,3.2078]
[1739540719774,3.24237137,2693.4,2693.3,3.2078]
[1739540720176,0.04242837,2693.4,2693.3,3.2078]
[1739540720577,0.04242837,2693.4,2693.3,3.95027]
[1739540722469,3.24237137,2694.0,2693.8,0.74232]
[1739540722680,3.24237137,2694.0,2693.8,1.664]
[1739540722877,3.98466137,2694.0,2693.8,1.664]
[1739540723382,3.24237137,2694.0,2693.8,1.664]
[1739540724581,3.98466137,2694.0,2693.8,1.664]
[1739540725081,3.24237137,2694.0,2693.8,2.40633]
[1739540725284,3.24237137,2694.0,2693.8,1.664]
[1739540725487,3.98466137,2694.0,2693.8,1.664]
[1739540725685,0.7423,2693.9,2693.8,1.664]
[1739540725883,3.24237137,2694.0,2693.8,2.40632]
[1739540727978,3.24237137,2694.0,2693.9,0.7423]
[1739540728282,3.2078,2694.5,2693.9,0.7423]
[1739540728283,3.24237137,2695.5,2693.9,20.0074]
[1739540728477,4.34587137,2695.5,2694.8,3.2078]
[1739540728785,5.08774137,2695.5,2695.2,0.74193]
[1739540729092,4.34587137,2695.5,2695.1,3.2078]
[1739540729481,0.74191,2695.4,2695.1,3.94976]
[1739540729680,3.24237137,2695.2,2695.1,3.2078]
[1739540729878,0.74197,2695.1,2695.0,0.00556617]
[1739540730186,1.28717,2695.1,2695.0,0.00556617]
[1739540736084,6.45017137,2695.2,2695.0,0.00556617]
[1739540736286,1.1035,2695.5,2695.0,1.66956617]
[1739540736287,3.24237137,2695.5,2695.0,1.66956617]
[1739540736610,0.7419,2695.4,2695.3,0.74191]
[1739540736886,3.98426137,2695.5,2695.3,0.74191]
[1739540737088,3.24237137,2695.5,2695.3,0.74191]
[1739540737289,0.74189,2695.4,2695.3,0.74191]
[1739540737489,0.74189,2695.4,2695.2,0.5621]
[1739540737685,3.24237137,2695.5,2695.2,0.5621]
[1739540737993,0.74192,2695.3,2695.2,0.5621]
[1739540739692,4.37037137,2695.5,2695.1,1.664]
[1739540739893,3.98431137,2695.2,2695.1,2.2366]
[1739540740889,3.24237137,2695.5,2695.1,2.2366]
[1739540741090,3.98425137,2695.5,2695.3,0.74191]
[1739540741292,3.98425137,2695.5,2695.3,3.94971]
[1739540741991,3.24237137,2695.5,2695.4,0.74189]
[1739540742598,0.00556617,2695.6,2695.5,0.74186]
[1739540744090,3.24237137,2696.1,2695.5,0.74186]
[1739540744391,0.74175,2695.9,2695.8,3.2078]
[1739540744589,0.74175,2695.9,2695.8,4.8708]
[1739540745090,0.74175,2695.9,2695.8,1.663]
[1739540745301,0.74178,2695.8,2695.7,1.663]
[1739540745492,0.74181,2695.7,2695.5,0.74184]
[1739540745692,3.24237137,2695.8,2695.6,1.663]
[1739540745993,3.98415137,2695.8,2695.7,0.5635]
[1739540746194,3.24237137,2695.8,2695.7,0.5635]
[1739540746398,3.24237137,2695.8,2695.7,1.30531]
[1739540747295,3.24793754,2696.1,2696.0,0.74172]
[1739540747692,3.98964754,2696.1,2695.9,0.74174]
[1739540748198,3.24793754,2696.1,2696.0,0.74172]
[1739540749297,3.24793754,2696.1,2695.7,4.8674]
[1739540749899,3.24793754,2696.1,2696.0,0.74172]
[1739540751002,0.74174,2696.0,2695.8,0.74176]
[1739540751301,3.24793754,2696.1,2695.7,4.8674]
[1739540751503,3.24793754,2696.1,2696.0,0.74172]
[1739540751802,0.00556617,2696.1,2696.0,3.94952]
[1739540757005,0.00556617,2696.1,2696.0,9.94952]
[1739540757206,3.98391137,2696.7,2696.5,0.74156]
[1739540757503,3.98391137,2696.7,2696.6,2.8309]
[1739540757704,3.98391137,2696.7,2696.6,3.57246]
[1739540757904,3.98391137,2696.7,2696.6,2.8309]
[1739540761710,3.24237137,2696.7,2696.6,3.57246]
[1739540761900,3.98390137,2696.7,2696.6,2.8309]
[1739540762314,3.24237137,2696.7,2696.6,3.57246]
[1739540762601,3.98390137,2696.7,2696.6,2.8309]
[1739540762910,3.98390137,2696.7,2696.6,1.663]
[1739540764206,3.98390137,2696.7,2696.6,2.40456]
[1739540764711,3.24237137,2696.7,2696.6,2.40456]
[1739540765209,3.98390137,2696.7,2696.6,2.40456]
[1739540765407,3.98390137,2696.7,2696.6,1.663]
[1739540766898,3.24237137,2696.7,2696.6,2.40456]
[1739540767412,0.54746617,2696.9,2696.6,1.663]
[1739540767597,0.54746617,2696.9,2696.8,0.7415]
[1739540768102,0.00556617,2696.9,2696.8,0.7415]
[1739540768301,0.00556617,2696.9,2696.6,4.8708]
[1739540768302,0.7414,2697.2,2697.0,0.74143]
[1739540768499,0.7414,2697.2,2697.1,0.74142]
[1739540768700,3.24237137,2697.3,2697.1,1.662]
[1739540768907,1.7307,2697.5,2697.1,1.662]
[1739540769109,2.47202,2697.5,2697.2,0.5436]
[1739540769310,1.7307,2697.5,2697.2,0.5436]
[1739540769513,0.74137,2697.4,2697.2,0.5436]
[1739540769704,0.74137,2697.4,2697.2,1.28499]
[1739540770011,0.74137,2697.4,2697.2,0.5436]
[1739540770207,1.7307,2697.5,2697.2,0.5436]
[1739540770513,1.7307,2697.5,2697.2,1.28497]
[1739540770711,2.47204,2697.5,2697.2,1.28497]
[1739540770908,0.74134,2697.4,2697.2,1.28497]
[1739540771317,1.1482,2697.5,2697.4,0.74134]
[1739540772010,1.1482,2697.5,2697.2,3.7514]
[1739540772211,1.1482,2697.5,2697.3,0.74136]
[1739540772409,1.1482,2697.5,2697.2,3.2078]
[1739540772612,0.74134,2697.4,2697.2,3.94918]
[1739540772804,1.88952,2697.5,2697.3,0.74136]
[1739540773213,1.1482,2697.5,2697.3,0.74136]
[1739540773707,1.88952,2697.5,2697.2,3.94918]
[1739540773909,0.74135,2697.4,2697.2,3.94918]
[1739540774117,1.1482,2697.5,2697.2,3.2078]
[1739540774410,0.74135,2697.4,2697.2,3.94918]
[1739540774611,1.88953,2697.5,2697.2,3.94918]
[1739540774917,1.88953,2697.5,2697.3,0.74135]
[1739540775112,1.1482,2697.5,2697.3,0.74135]
[1739540775411,1.1482,2697.5,2697.2,3.2078]
[1739540775618,3.98374137,2697.3,2697.2,3.2078]
[1739540775813,3.98374137,2697.3,2697.2,4.8698]
[1739540776116,3.98374137,2697.3,2696.9,0.18563497]
[1739540776117,0.74147,2697.0,2696.9,3.2078]
[1739540776409,0.74148,2696.9,2696.8,1.662]
[1739540776610,0.74153,2696.7,2696.6,21.08]
[1739540776816,3.98390137,2696.7,2696.6,1.662]
[1739540779018,3.24237137,2696.7,2696.6,1.662]
[1739540779219,1.1376,2696.9,2696.7,0.74151]
[1739540779220,1.87909,2696.9,2696.7,0.74151]
[1739540779617,1.87909,2696.9,2696.6,5.61134]
[1739540780312,1.1376,2696.9,2696.6,4.8698]
[1739540780512,0.74156,2696.6,2696.5,1.662]
[1739540781929,0.74159,2696.5,2696.4,1.66756617]
[1739540782219,1.31549,2696.5,2696.4,0.00556617]
[1739540784415,3.24237137,2696.7,2696.5,0.74158]
[1739540784615,3.24237137,2696.7,2696.6,0.74156]
[1739540785210,3.98390137,2696.7,2696.6,0.74156]
[1739540785716,3.24237137,2696.7,2696.6,0.74156]
[1739540785918,1.3238,2696.9,2696.7,0.74152]
[1739540786117,0.7415,2696.8,2696.7,0.74152]
[1739540786421,1.32378,2696.9,2696.7,0.74152]
[1739540786617,3.24237137,2697.3,2696.8,3.2078]
[1739540786818,3.24237137,2697.3,2696.9,1.1502]
[1739540787121,3.98375137,2697.3,2697.1,3.2078]
[1739540787319,3.24237137,2697.3,2697.1,4.8698]
[1739540788017,0.74139,2697.2,2697.1,4.8698]
[1739540788315,0.74139,2697.2,2697.1,1.662]
[1739540789617,3.24237137,2697.3,2696.7,4.8698]
[1739540789818,3.24237137,2697.0,2696.7,4.8698]
[1739540790013,0.7415,2696.8,2696.7,5.61132]
[1739540790212,0.7415,2696.8,2696.7,2.40352]
[1739540790520,0.7415,2696.8,2696.7,1.662]
[1739540791610,1.85729,2696.9,2696.7,2.40352]
[1739540792023,0.7415,2696.8,2696.7,1.662]
[1739540792325,1.85729,2696.9,2696.7,1.662]
[1739540792615,0.7415,2696.8,2696.7,1.662]
[1739540793428,1.85729,2696.9,2696.7,1.662]
[1739540793725,0.5608,2696.9,2696.8,0.7415]
[1739540793925,0.5608,2696.9,2696.7,4.8698]
[1739540794118,3.24237137,2697.0,2696.8,0.74148]
[1739540794320,3.24237137,2697.0,2696.7,4.8698]
[1739540794616,0.74142,2697.2,2696.7,4.8698]
[1739540794926,0.74142,2697.2,2696.9,0.74145]
[1739540795124,0.74144,2697.1,2696.9,0.74145]
[1739540795422,0.74145,2697.1,2696.8,1.29478]
[1739540795623,0.74145,2697.1,2696.8,0.5533]
[1739540795823,0.74145,2697.1,2696.9,0.74147]
[1739540796423,3.24237137,2697.0,2696.9,0.74148]
[1739540797519,3.24237137,2697.0,2696.6,1.662]
[1739540797715,3.24237137,2697.0,2696.8,3.2078]
[1739540797921,3.24237137,2697.0,2696.9,0.74148]
[1739540798123,4.53545137,2697.3,2697.0,0.74142]
[1739540798418,4.53546137,2697.3,2697.1,2.96061]
[1739540798623,0.5425,2697.4,2697.2,1.30748]
[1739540798624,0.74135,2697.4,2697.2,1.30748]
[1739540798815,3.98923754,2697.6,2697.3,0.74136]
[1739540799125,0.74135,2697.4,2697.2,1.1073]
[1739540799321,3.24237137,2697.3,2697.2,0.5661]
[1739540799529,4.52274137,2697.3,2697.2,0.5661]
[1739540802524,3.78137137,2697.3,2697.1,1.662]
[1739540802825,0.74139,2697.2,2697.1,1.662]
[1739540804133,3.98376137,2697.3,2697.1,2.40342]
[1739540804523,0.74139,2697.2,2697.1,1.662]
[1739540805231,3.24237137,2697.3,2697.1,1.662]
[1739540805422,0.74139,2697.2,2697.1,1.662]
[1739540806331,3.24237137,2697.3,2697.1,1.662]
[1739540806529,3.98375137,2697.3,2697.1,1.662]
[1739540806725,0.00556617,2697.6,2697.5,0.74131]
[1739540807727,0.00556617,2697.6,2697.4,3.2078]
[1739540808129,0.00556617,2697.6,2697.5,0.74131]
[1739540809841,0.00556617,2697.6,2697.4,3.2078]
[1739540810132,0.00556617,2697.6,2697.5,2.40331]
[1739540811436,3.24237137,2698.3,2698.1,0.74113]
[1739540811735,3.24237137,2698.3,2698.1,2.40313]
[1739540811936,3.24237137,2698.3,2698.1,1.662]
[1739540812235,3.24237137,2698.6,2698.2,3.2078]
[1739540812435,3.24237137,2698.6,2698.5,0.74104]
[1739540812636,0.00364015,2698.7,2698.6,0.74099]
[1739540812833,0.00364015,2698.7,2698.6,2.40199]
[1739540813426,0.00364015,2698.7,2698.6,2.94179]
[1739540814032,0.00364015,2698.7,2698.6,1.661]
[1739540814239,0.00364015,2698.7,2698.6,2.40201]
[1739540815439,0.00364015,2698.7,2698.6,1.661]
[1739540815639,0.00364015,2698.7,2698.6,2.40201]
[1739540822854,0.00364015,2698.7,2698.6,0.74101]
[1739540823154,0.00364015,2698.7,2698.6,2.40201]
[1739540826648,0.5779,2699.5,2698.8,1.85234]
[1739540826857,1.87978,2699.5,2699.3,0.74081]
[1739540827249,6.45017137,2699.8,2699.2,2.2017]
[1739540827553,6.45017137,2699.8,2699.4,3.2078]
[1739540827855,0.74063,2700.0,2699.8,0.74067]
[1739540828046,0.74063,2700.0,2699.9,1.661]
[1739540828249,0.74062,2700.0,2699.9,1.661]
[1739540828748,3.83637137,2700.1,2699.9,1.661]
[1739540828946,0.74062,2700.0,2699.9,1.661]
[1739540830456,3.83637137,2700.1,2699.9,1.661]
[1739540830661,0.74062,2700.0,2699.9,1.661]
[1739540831348,3.83637137,2700.1,2699.9,1.661]
[1739540831547,4.57698137,2700.1,2699.9,1.661]
[1739540832849,3.83637137,2700.1,2699.9,1.661]
[1739540833056,0.594,2700.1,2700.0,0.74062]
[1739540833250,3.9483,2700.5,2700.0,3.2078]
[1739540833455,3.9483,2700.5,2700.3,0.74053]
[1739540833751,3.9483,2700.5,2700.4,1.66]
[1739540833955,7.19066137,2700.5,2700.4,1.66]
[1739540837658,7.23319877,2700.5,2700.4,1.66]
[1739540837959,1.8513,2700.4,2700.0,1.66]
[1739540838149,0.7406,2700.1,2700.0,1.66]
[1739540838560,1.3526374,2700.1,2700.0,1.66]
[1739540839153,0.6120374,2700.1,2700.0,1.66]
[1739540839453,0.6120374,2700.1,2700.0,2.40062]
[1739540839454,0.7831374,2700.1,2700.0,2.40062]
[1739540839661,0.0425374,2700.1,2700.0,2.40062]
[1739540841549,0.7831374,2700.1,2700.0,1.66]
[1739540842063,0.0425374,2700.1,2700.0,1.66]
[1739540842358,0.7831374,2700.1,2700.0,1.66]
[1739540844258,0.0425374,2700.1,2700.0,2.40062]
[1739540845563,0.04690099,2700.1,2700.0,2.40062]
[1739540847165,0.04690099,2700.1,2700.0,1.66]
[1739540847467,0.04690099,2700.1,2700.0,2.40062]
[1739540848053,0.78750099,2700.1,2700.0,2.40062]
[1739540848264,0.04690099,2700.1,2700.0,2.40062]
[1739540848959,0.04690099,2700.1,2700.0,1.66]
[1739540849164,0.04690099,2700.1,2700.0,2.40062]
[1739540849663,0.04690099,2700.1,2700.0,1.66]
[1739540849860,0.04690099,2700.1,2700.0,2.40062]
[1739540850065,0.04690099,2700.1,2700.0,5.60842]
[1739540851761,0.00436359,2700.1,2700.0,5.60842]
[1739540851957,0.09013556,2700.1,2700.0,5.60842]
[1739540852557,0.1333703,2700.1,2700.0,5.60842]
[1739540852953,0.00436359,2700.1,2700.0,5.60842]
[1739540853159,0.1766052,2700.1,2700.0,5.60842]
[1739540855267,0.21962061,2700.1,2700.0,5.60842]
[1739540855565,0.21962061,2700.1,2700.0,5.60742]
[1739540855868,0.26263618,2700.1,2700.0,5.60742]
[1739540856369,0.00436359,2700.1,2700.0,5.60742]
[1739540856573,0.30565191,2700.1,2700.0,5.60742]
[1739540857168,0.34866781,2700.1,2700.0,5.60742]
[1739540857761,0.39168388,2700.1,2700.0,5.60742]
[1739540859366,1.13228388,2700.1,2700.0,3.2078]
[1739540861268,0.74068,2699.8,2699.7,0.5813]
[1739540861571,0.5821,2700.0,2699.7,2.2403]
[1739540861772,0.00436359,2700.1,2699.7,2.2403]
[1739540861983,0.74498359,2700.1,2699.9,0.74064]
[1739540862266,0.00436359,2700.1,2700.0,0.74062]
[1739540862470,0.00436359,2700.1,2700.0,1.30382]
[1739540862870,0.74496359,2700.1,2700.0,0.5632]
[1739540863873,0.74068,2699.9,2699.7,2.981]
[1739540864072,0.74067,2699.9,2699.7,3.5608]
[1739540864469,0.74067,2699.9,2699.7,2.8201]
[1739540865076,0.74067,2699.9,2699.7,3.56079]
[1739540865468,0.00436359,2700.1,2699.7,2.8201]
[1739540865667,0.74063,2700.0,2699.9,0.74065]
[1739540865868,0.00436359,2700.1,2699.7,2.8201]
[1739540866164,0.00436359,2700.1,2700.0,0.74062]
[1739540867167,0.00436359,2700.1,2700.0,2.39962]
[1739540868270,0.00436359,2700.1,2700.0,2.94572]
[1739540870969,0.00436359,2700.1,2700.0,2.39962]
[1739540874069,0.00436359,2700.1,2700.0,5.64199137]
[1739540875476,3.2078,2701.0,2700.0,10.90137137]
[1739540875681,0.74039,2700.9,2700.7,0.74041]
[1739540875879,3.94817,2701.0,2700.8,2.39939]
[1739540876078,3.2078,2701.0,2700.8,2.39939]
[1739540876373,3.94816,2701.0,2700.8,2.3994]
[1739540876576,3.2078,2701.0,2700.9,0.74038]
[1739540876779,3.2078,2701.3,2700.8,4.8668]
[1739540877080,3.94808,2701.3,2701.1,0.74032]
[1739540877281,3.94808,2701.3,2701.0,0.74033]
[1739540877476,3.2078,2701.3,2701.1,0.74032]
[1739540877676,0.5678,2701.4,2701.1,3.2078]
[1739540877879,0.5678,2701.4,2701.2,1.1534]
[1739540878072,0.5678,2701.4,2701.3,2.39927]
[1739540878479,0.5678,2701.4,2701.3,1.659]
[1739540878982,1.30804,2701.4,2701.3,1.659]
[1739540879378,0.5678,2701.4,2701.3,1.659]
[1739540879579,1.30804,2701.4,2701.3,1.659]
[1739540880177,0.74032,2701.1,2701.0,1.659]
[1739540880478,0.74028,2701.3,2701.0,2.39935]
[1739540880685,1.30806,2701.4,2701.1,0.74032]
[1739540881373,1.30806,2701.4,2701.1,0.74031]
[1739540882279,0.5678,2701.4,2701.0,1.659]
[1739540882577,3.81017137,2701.4,2701.0,1.659]
[1739540882987,0.74032,2701.1,2700.9,1.90587]
[1739540883278,0.74032,2701.1,2701.0,1.659]
[1739540883476,0.74031,2701.2,2701.0,1.659]
[1739540883673,0.74031,2701.2,2701.0,2.39935]
[1739540884075,0.5678,2701.4,2701.0,1.659]
[1739540884276,0.74028,2701.3,2701.0,1.659]
[1739540884478,0.74028,2701.3,2701.1,0.74032]
[1739540884978,0.5678,2701.4,2701.1,3.2078]
[1739540885283,0.5678,2701.4,2701.3,0.74027]
[1739540885677,3.2078,2701.9,2701.2,3.24237137]
[1739540885876,0.5486,2701.8,2701.4,3.2078]
[1739540886080,1.28875,2701.8,2701.5,2.98619]
[1739540886585,0.5486,2701.8,2701.5,2.98619]
[1739540886781,0.74016,2701.7,2701.5,2.246]
[1739540887181,0.74016,2701.7,2701.5,2.98621]
[1739540887384,1.28874,2701.8,2701.5,2.98619]
[1739540887589,0.74016,2701.7,2701.5,2.246]
[1739540888079,0.74016,2701.7,2701.5,2.98621]
[1739540888586,0.5486,2701.8,2701.5,2.246]
[1739540888986,3.94791,2701.9,2701.7,0.74014]
[1739540889281,0.5652,2702.0,2701.9,0.7401]
[1739540889474,0.5425,2702.2,2701.8,3.2078]
[1739540889475,0.5425,2702.2,2702.0,0.74006]
[1739540889677,0.5425,2702.2,2702.1,1.658]
[1739540889877,1.28252,2702.2,2702.1,1.658]
[1739540890376,0.5425,2702.2,2702.1,1.658]
[1739540890987,3.82557137,2702.6,2702.1,2.39805]
[1739540891180,0.74001,2702.3,2702.1,1.658]
[1739540891381,0.74002,2702.2,2702.1,1.66355566]
[1739540892584,1.29082,2702.2,2702.1,0.00555566]
[1739540892883,4.49862,2702.2,2702.1,0.00555566]
[1739540893879,9.7586,2702.2,2701.2,3.2078]
[1739540894075,5.0581,2701.9,2701.2,3.7889]
[1739540894281,5.05827,2701.6,2701.3,1.658]
[1739540894479,3.98261137,2701.4,2701.3,1.658]
[1739540896086,0.74024,2701.4,2701.3,1.658]
[1739540896589,3.98261137,2701.4,2701.3,1.658]
[1739540897689,0.7403,2701.2,2701.1,0.00555566]
[1739540900386,6.7403,2701.2,2701.1,0.00555566]
[1739540901391,6.7403,2701.2,2701.1,5.66e-06]
[1739540903392,0.7403,2701.2,2701.1,5.66e-06]
[1739540906685,6.7403,2701.2,2701.1,5.66e-06]
[1739540907289,0.74052,2700.4,2700.3,2.2288]
[1739540907497,3.98289137,2700.4,2700.3,2.2288]
[1739540908392,3.98289137,2700.4,2700.3,1.658]
[1739540911191,0.74057,2700.2,2700.1,0.00555566]
[1739540911394,0.74057,2700.2,2700.1,1.66355566]
[1739540913997,0.74057,2700.2,2700.1,1.55616575]
[1739540917199,0.7406,2700.1,2700.0,0.5884]
[1739540917495,0.7406,2700.1,2700.0,2.2464]
[1739540919402,0.7406,2700.1,2700.0,2.1163999]
[1739540922306,3.2078,2701.3,2700.0,14.2763999]
[1739540922497,0.00552061,2701.6,2701.1,3.24237137]
[1739540922697,0.00552061,2701.6,2701.4,0.74023]
[1739540922899,0.00552061,2701.6,2701.3,3.2078]
[1739540923107,0.74572061,2701.6,2701.3,3.94805]
[1739540923407,0.00552061,2701.6,2701.3,3.2078]
[1739540923601,0.00552061,2701.6,2701.4,0.74023]
[1739540924394,0.00552061,2701.6,2701.3,3.2078]
[1739540924596,0.00552061,2701.6,2701.5,0.74021]
[1739540925906,0.00552061,2701.6,2701.4,0.5574]
[1739540926110,0.00552061,2701.6,2701.5,1.658]
[1739540926810,0.00552061,2701.6,2701.4,0.5574]
[1739540927016,0.74571061,2701.6,2701.5,1.658]
[1739540929111,3.24789198,2701.6,2701.3,0.00555566]
[1739540929524,0.74024,2701.4,2701.3,0.00555566]
[1739540937035,0.74024,2701.4,2701.3,5.66e-06]
[1739540937036,6.74024,2701.4,2701.3,5.66e-06]
[1739540941330,0.74024,2701.4,2701.3,5.66e-06]
[1739540941536,6.74024,2701.4,2701.3,5.66e-06]
[1739540943434,0.74024,2701.4,2701.3,5.66e-06]
[1739540948539,0.00552061,2701.6,2701.5,0.74021]